bitfinex/quotes_BTCUSD_20220207
["timestamp","ask_amount","ask_price","bid_price","bid_amount"]
[1644210402105,0.333593,42786.0,42782.0,0.01401393]
[1644210404105,0.340593,42786.0,42782.0,0.01401393]
[1644210405457,0.326593,42786.0,42782.0,0.01401393]
[1644210406257,0.333593,42786.0,42782.0,0.01401393]
[1644210407357,0.326593,42786.0,42782.0,0.01401393]
[1644210408158,0.333593,42786.0,42782.0,0.01401393]
[1644210409502,0.326593,42786.0,42782.0,0.01401393]
[1644210410301,0.330593,42786.0,42782.0,0.01401393]
[1644210411302,0.004,42786.0,42783.0,0.26641424]
[1644210411504,0.37008645,42790.0,42783.0,0.26641424]
[1644210411505,0.25158645,42790.0,42783.0,0.26641424]
[1644210411702,0.00056534,42787.0,42783.0,0.26641424]
[1644210412101,0.00456534,42787.0,42783.0,0.26641424]
[1644210412302,0.00456534,42787.0,42783.0,0.05]
[1644210412502,0.00456534,42787.0,42782.0,0.06401393]
[1644210412703,0.004,42787.0,42782.0,0.01401393]
[1644210412959,0.00456535,42787.0,42782.0,0.01401393]
[1644210413359,0.00056535,42787.0,42782.0,0.01401393]
[1644210414060,0.00056534,42787.0,42782.0,0.01401393]
[1644210414261,0.00456534,42787.0,42782.0,0.01401393]
[1644210414960,0.08758033,42786.0,42782.0,0.01401393]
[1644210415460,0.00056534,42787.0,42785.0,0.05]
[1644210416261,0.003,42787.0,42785.0,0.05]
[1644210417513,0.24768218,42794.0,42785.0,0.05]
[1644210417713,0.24768218,42794.0,42789.0,0.07357448]
[1644210417914,0.326592,42793.0,42786.0,0.00046]
[1644210418316,0.28313751,42792.0,42786.0,0.00046]
[1644210418514,0.326592,42791.0,42786.0,0.00046]
[1644210418720,0.25368218,42794.0,42786.0,0.00046]
[1644210418915,0.00056535,42791.0,42786.0,0.00046]
[1644210419315,0.326592,42790.0,42786.0,0.00046]
[1644210419715,0.00056535,42791.0,42786.0,0.00046]
[1644210419914,0.29179411,42792.0,42786.0,0.00046]
[1644210420116,0.00056535,42790.0,42786.0,0.00046]
[1644210420564,0.00056535,42790.0,42786.0,0.05046]
[1644210420955,0.00056535,42790.0,42786.0,0.00046]
[1644210421158,0.003,42791.0,42786.0,0.00046]
[1644210421359,0.00056535,42790.0,42786.0,0.00046]
[1644210422258,0.003,42790.0,42786.0,0.00046]
[1644210422457,0.00356535,42790.0,42786.0,0.00046]
[1644210423558,0.326592,42793.0,42786.0,0.00046]
[1644210423759,0.00056535,42790.0,42786.0,0.00046]
[1644210424312,0.00356535,42790.0,42786.0,0.00046]
[1644210424512,0.00356535,42790.0,42789.0,0.05]
[1644210424712,0.003,42790.0,42789.0,0.72623899]
[1644210424913,0.00356535,42790.0,42789.0,0.87293899]
[1644210425118,0.00027859,42798.0,42789.0,0.92293899]
[1644210425321,0.19992749,42814.0,42800.0,0.36172369]
[1644210425513,0.19992749,42814.0,42811.0,0.05]
[1644210425514,0.5954689,42812.0,42811.0,0.05]
[1644210425717,0.5954689,42812.0,42811.0,0.0967]
[1644210425916,0.5954689,42812.0,42811.0,0.38036358]
[1644210426315,0.5954689,42812.0,42811.0,0.43636358]
[1644210426514,0.5954689,42812.0,42811.0,0.23257519]
[1644210427516,0.5954689,42812.0,42811.0,0.22657519]
[1644210427718,0.5954689,42812.0,42811.0,0.17657519]
[1644210427961,0.5954689,42812.0,42811.0,0.0467]
[1644210428361,0.5954689,42812.0,42811.0,0.0517]
[1644210429365,0.5954689,42812.0,42811.0,0.14125883]
[1644210429562,0.5954689,42812.0,42811.0,0.13625883]
[1644210430162,0.5954689,42812.0,42811.0,0.0517]
[1644210430564,0.5954689,42812.0,42811.0,0.005]
[1644210431161,0.5954689,42812.0,42811.0,0.0769337]
[1644210431617,0.5954689,42812.0,42811.0,0.005]
[1644210432011,0.5954689,42812.0,42810.0,0.05]
[1644210432209,0.5954689,42812.0,42811.0,0.005]
[1644210432609,0.5954689,42812.0,42811.0,0.28090706]
[1644210433211,0.5954689,42812.0,42811.0,0.36086397]
[1644210433412,0.5954689,42812.0,42811.0,0.07995691]
[1644210434211,0.5954689,42812.0,42811.0,0.08495691]
[1644210436062,0.5954689,42812.0,42811.0,0.07995691]
[1644210436264,0.5954689,42812.0,42811.0,0.08495691]
[1644210436664,0.5954689,42812.0,42811.0,0.36086094]
[1644210436962,0.5954689,42812.0,42811.0,0.08495691]
[1644210437562,0.5954689,42812.0,42811.0,0.07995691]
[1644210438165,0.5954689,42812.0,42811.0,0.08495691]
[1644210439214,0.5954689,42812.0,42811.0,0.36347133]
[1644210439411,0.5954689,42812.0,42811.0,0.07995691]
[1644210439815,0.5954689,42812.0,42811.0,0.35060198]
[1644210440212,0.5954689,42812.0,42811.0,0.35660198]
[1644210441512,0.5954689,42812.0,42811.0,0.35060198]
[1644210441712,0.5954689,42812.0,42811.0,0.40060198]
[1644210442317,0.5954689,42812.0,42811.0,0.40660198]
[1644210443459,0.5954689,42812.0,42811.0,0.35060198]
[1644210444259,0.5954689,42812.0,42811.0,0.35660198]
[1644210445361,0.5954689,42812.0,42811.0,0.08595691]
[1644210445562,0.5954689,42812.0,42811.0,0.41061523]
[1644210445763,0.5954689,42812.0,42811.0,0.83383923]
[1644210445964,0.5954689,42812.0,42811.0,0.78383923]
[1644210446366,0.5954689,42812.0,42811.0,0.78983923]
[1644210446613,0.5954689,42812.0,42811.0,0.83983923]
[1644210446809,0.5954689,42812.0,42811.0,0.93983923]
[1644210447008,0.59537368,42812.0,42811.0,0.93983923]
[1644210447514,0.24509346,42812.0,42811.0,0.93383923]
[1644210448409,0.24509346,42812.0,42811.0,0.94183923]
[1644210449510,0.24509346,42812.0,42811.0,0.93383923]
[1644210450359,0.24509346,42812.0,42811.0,0.94183923]
[1644210450760,0.24509346,42812.0,42811.0,0.79183923]
[1644210451160,0.24509346,42812.0,42811.0,0.89183923]
[1644210451560,0.24509346,42812.0,42811.0,0.88383923]
[1644210452364,0.24509346,42812.0,42811.0,0.89183923]
[1644210452767,0.24509346,42812.0,42811.0,0.94183923]
[1644210453565,0.24509346,42812.0,42811.0,0.93383923]
[1644210454413,0.24509346,42812.0,42811.0,0.94183923]
[1644210455612,0.24509346,42812.0,42811.0,0.93383923]
[1644210456415,0.24509346,42812.0,42811.0,0.94183923]
[1644210457617,0.24509346,42812.0,42811.0,0.93383923]
[1644210458263,0.24509346,42812.0,42811.0,0.94183923]
[1644210458865,0.24509346,42812.0,42811.0,0.74183923]
[1644210459066,0.24509346,42812.0,42811.0,0.79183923]
[1644210459666,0.24509346,42812.0,42811.0,0.78383923]
[1644210460366,0.24509346,42812.0,42811.0,0.79083923]
[1644210460766,0.24509346,42812.0,42811.0,0.84083923]
[1644210461714,0.24509346,42812.0,42811.0,0.83383923]
[1644210462313,0.24509346,42812.0,42811.0,0.84183923]
[1644210462514,0.23764077,42812.0,42811.0,0.84183923]
[1644210463116,0.23764077,42812.0,42811.0,0.84176134]
[1644210463515,0.23264077,42812.0,42811.0,0.84176134]
[1644210463713,0.23264077,42812.0,42811.0,0.83376134]
[1644210464315,0.23264077,42812.0,42811.0,0.84176134]
[1644210464715,0.23264077,42812.0,42811.0,0.46440302]
[1644210465560,0.23264077,42812.0,42811.0,0.45640302]
[1644210465763,0.23264077,42812.0,42811.0,0.40648091]
[1644210466361,0.23264077,42812.0,42811.0,0.41048091]
[1644210467664,0.23264077,42812.0,42811.0,0.40648091]
[1644210468465,0.23264077,42812.0,42811.0,0.41148091]
[1644210468865,0.23251077,42812.0,42811.0,0.41148091]
[1644210470212,0.23251077,42812.0,42811.0,0.40648091]
[1644210470413,0.23251077,42812.0,42811.0,0.41148091]
[1644210471015,0.23209077,42812.0,42811.0,0.41148091]
[1644210471615,0.23201077,42812.0,42811.0,0.40648091]
[1644210472416,0.23201077,42812.0,42811.0,0.331524]
[1644210474469,0.23201077,42812.0,42811.0,0.336524]
[1644210475267,0.23201077,42812.0,42811.0,0.42159153]
[1644210475668,0.23201077,42812.0,42811.0,0.41159153]
[1644210476473,0.23201077,42812.0,42811.0,0.41659153]
[1644210477514,0.23201077,42812.0,42811.0,0.41159153]
[1644210478115,0.19713366,42812.0,42811.0,0.41159153]
[1644210478316,0.19713366,42812.0,42811.0,0.41659153]
[1644210479317,0.00084166,42814.0,42812.0,0.326509]
[1644210479517,0.00056506,42814.0,42812.0,0.326509]
[1644210479918,0.0002766,42817.0,42811.0,0.08506753]
[1644210480221,0.00056506,42815.0,42811.0,0.08506753]
[1644210480462,0.00056506,42815.0,42812.0,0.004]
[1644210481062,0.0002766,42820.0,42812.0,0.004]
[1644210481269,0.00056506,42816.0,42812.0,0.004]
[1644210481663,0.00056506,42816.0,42811.0,0.13506753]
[1644210481863,0.00056506,42816.0,42812.0,0.326506]
[1644210482266,0.0002766,42818.0,42812.0,0.326506]
[1644210482465,0.00056506,42816.0,42812.0,0.004]
[1644210483166,0.00056506,42816.0,42813.0,0.05]
[1644210483367,0.00056506,42816.0,42814.0,0.32649]
[1644210483565,0.1206,42823.0,42814.0,0.32649]
[1644210483566,0.0002766,42819.0,42814.0,0.32649]
[1644210483768,0.00056506,42817.0,42814.0,0.32649]
[1644210484215,0.35380965,42823.0,42818.0,0.08169449]
[1644210484411,0.32686916,42822.0,42818.0,0.08169449]
[1644210484714,0.326592,42822.0,42818.0,0.08169449]
[1644210485316,0.326592,42822.0,42814.0,0.005]
[1644210485512,0.26855101,42822.0,42814.0,0.005]
[1644210485712,0.00027716,42823.0,42812.0,0.27436278]
[1644210485914,0.07795365,42824.0,42812.0,0.27436278]
[1644210486112,0.4946,42826.0,42812.0,0.27436278]
[1644210486113,0.00027716,42823.0,42812.0,0.27436278]
[1644210486317,0.00027716,42825.0,42812.0,0.27436278]
[1644210486512,0.54487716,42826.0,42812.0,0.27936278]
[1644210486713,0.19841852,42822.0,42813.0,0.31435722]
[1644210487114,0.00027716,42824.0,42814.0,0.06699685]
[1644210487417,2.53969124,42832.0,42814.0,0.06699685]
[1644210487418,0.00056365,42820.0,42819.0,0.05]
[1644210487615,0.00056365,42820.0,42819.0,0.67154859]
[1644210488267,0.260285,42828.0,42825.0,0.08134275]
[1644210488468,0.07229987,42830.0,42825.0,0.08134275]
[1644210488667,0.00027714,42829.0,42825.0,0.08134275]
[1644210488870,0.07257701,42830.0,42825.0,0.08134275]
[1644210489068,0.00027714,42829.0,42825.0,0.08134275]
[1644210489268,0.07257701,42830.0,42825.0,0.08134275]
[1644210489468,0.21505908,42828.0,42825.0,0.08134275]
[1644210489866,0.21505908,42828.0,42819.0,0.37778895]
[1644210490067,0.21505908,42828.0,42819.0,0.47778895]
[1644210490267,0.00027714,42828.0,42819.0,0.37778895]
[1644210490469,0.00056365,42829.0,42819.0,0.48378895]
[1644210490668,0.00027714,42828.0,42819.0,0.48378895]
[1644210490869,0.00056365,42826.0,42819.0,0.48378895]
[1644210491069,0.00056365,42826.0,42821.0,0.07539883]
[1644210491271,0.00056365,42826.0,42822.0,0.27064666]
[1644210491924,0.00027714,42828.0,42822.0,0.27064666]
[1644210492121,0.00056365,42826.0,42822.0,0.27064666]
[1644210492521,0.00056365,42826.0,42822.0,0.27664666]
[1644210492721,0.00056365,42826.0,42823.0,0.05]
[1644210493120,0.00027714,42830.0,42822.0,0.32664666]
[1644210493322,0.00027714,42826.0,42822.0,0.27664666]
[1644210493521,0.00016917,42827.0,42822.0,0.27664666]
[1644210493723,0.00016917,42827.0,42822.0,0.27064666]
[1644210494423,0.00027714,42830.0,42822.0,0.27664666]
[1644210494623,0.00056365,42827.0,42822.0,0.27664666]
[1644210494824,0.00056365,42827.0,42823.0,0.326409]
[1644210495463,0.00027714,42830.0,42822.0,0.006]
[1644210495664,0.19739251,42824.0,42818.0,0.0467]
[1644210495864,0.19739251,42824.0,42816.0,0.05]
[1644210496064,0.19739251,42824.0,42815.0,0.05]
[1644210496266,0.08353243,42820.0,42816.0,0.326463]
[1644210496463,0.08353243,42820.0,42816.0,0.60091356]
[1644210496863,0.08409608,42820.0,42818.0,0.326455]
[1644210497064,0.08409608,42820.0,42817.0,0.05]
[1644210497866,0.08353243,42820.0,42816.0,0.005]
[1644210498068,0.08353243,42820.0,42817.0,0.05]
[1644210498367,0.003,42820.0,42815.0,0.23092871]
[1644210498567,0.00327714,42820.0,42815.0,0.15]
[1644210498766,0.00327714,42820.0,42816.0,0.32647]
[1644210499222,0.00327714,42820.0,42817.0,0.05]
[1644210499418,0.00327714,42820.0,42815.0,0.05]
[1644210499419,0.00356365,42820.0,42815.0,0.05]
[1644210499620,0.00056365,42820.0,42818.0,0.07897169]
[1644210499819,0.00056365,42820.0,42819.0,0.326446]
[1644210500017,0.00056365,42820.0,42819.0,0.376446]
[1644210500418,0.003,42820.0,42815.0,0.05]
[1644210500719,0.003,42820.0,42816.0,0.376468]
[1644210500923,0.003,42820.0,42817.0,0.05]
[1644210501120,0.003,42820.0,42818.0,0.326455]
[1644210501422,0.003,42820.0,42816.0,0.05]
[1644210501619,0.00027714,42821.0,42815.0,0.05]
[1644210501823,0.00056365,42821.0,42815.0,0.05]
[1644210502118,0.00056365,42821.0,42816.0,0.05]
[1644210502319,0.00056365,42821.0,42815.0,0.05]
[1644210502519,0.00356365,42821.0,42815.0,0.05]
[1644210502720,0.003,42821.0,42815.0,0.05]
[1644210503765,0.00027714,42822.0,42815.0,0.05]
[1644210503963,0.07899751,42823.0,42815.0,0.05]
[1644210504563,0.08099751,42823.0,42815.0,0.05]
[1644210505665,0.07899751,42823.0,42815.0,0.05]
[1644210506618,0.00056476,42821.0,42815.0,0.05]
[1644210507614,0.00027714,42822.0,42815.0,0.05]
[1644210507825,0.00027714,42822.0,42817.0,0.05]
[1644210507826,0.00056476,42820.0,42817.0,0.05]
[1644210508217,0.00056476,42820.0,42818.0,0.326454]
[1644210508417,0.00556476,42820.0,42818.0,0.426454]
[1644210508616,0.00556476,42820.0,42818.0,0.476454]
[1644210508818,0.005,42820.0,42818.0,0.476454]
[1644210509019,0.005,42820.0,42819.0,0.39564665]
[1644210509218,0.005,42820.0,42819.0,0.44234665]
[1644210509621,0.005,42820.0,42819.0,0.54234665]
[1644210509819,0.00056476,42821.0,42820.0,0.326437]
[1644210510021,0.00027714,42823.0,42820.0,0.376437]
[1644210510222,0.00056476,42822.0,42820.0,0.476437]
[1644210510468,0.004,42821.0,42820.0,0.476437]
[1644210510668,0.004,42821.0,42820.0,0.526437]
[1644210511667,0.00056476,42823.0,42820.0,0.526437]
[1644210512070,0.00056476,42823.0,42821.0,0.326428]
[1644210512371,0.00027714,42824.0,42821.0,0.426428]
[1644210512568,0.003,42823.0,42821.0,0.326428]
[1644210513269,0.003,42823.0,42822.0,0.326419]
[1644210513471,0.003,42823.0,42822.0,0.376419]
[1644210513669,0.00027714,42829.0,42822.0,0.426419]
[1644210513870,0.00056476,42825.0,42822.0,0.426419]
[1644210514513,0.00356476,42825.0,42822.0,0.426419]
[1644210514714,0.003,42825.0,42822.0,0.426419]
[1644210515717,0.0008419,42826.0,42820.0,0.05]
[1644210515916,0.00027714,42825.0,42820.0,0.05]
[1644210516116,0.00056476,42826.0,42820.0,0.05]
[1644210516516,0.003,42825.0,42820.0,0.05]
[1644210516716,0.07985248,42830.0,42820.0,0.05]
[1644210516915,0.00027729,42825.0,42821.0,0.326425]
[1644210517117,0.00027729,42830.0,42819.0,0.21590065]
[1644210517318,0.00027729,42829.0,42824.0,0.05]
[1644210517522,0.00027729,42830.0,42825.0,0.05]
[1644210517720,0.07004396,42831.0,42825.0,0.1967]
[1644210518583,0.00016943,42830.0,42825.0,0.1677]
[1644210518784,0.00044672,42830.0,42825.0,0.2177]
[1644210519085,0.00016943,42830.0,42825.0,0.2177]
[1644210519385,0.00044672,42830.0,42826.0,0.08084812]
[1644210519584,0.07604396,42831.0,42826.0,0.08084812]
[1644210519785,0.00027729,42830.0,42826.0,0.08084812]
[1644210519985,0.00016943,42830.0,42826.0,0.08084812]
[1644210520190,0.00044672,42830.0,42826.0,0.08084812]
[1644210520386,0.00016943,42830.0,42826.0,0.08084812]
[1644210520586,0.00844672,42830.0,42826.0,0.09584812]
[1644210520787,0.008,42830.0,42826.0,0.09584812]
[1644210520987,0.00884064,42830.0,42826.0,0.09584812]
[1644210521392,0.00884064,42830.0,42826.0,0.14584812]
[1644210521812,0.00884064,42830.0,42826.0,0.13084812]
[1644210521813,0.00084064,42830.0,42826.0,0.13084812]
[1644210522014,0.00027729,42830.0,42826.0,0.13084812]
[1644210522213,0.00056335,42830.0,42826.0,0.1334074]
[1644210522413,0.00084064,42830.0,42826.0,0.1334074]
[1644210522614,0.00884064,42830.0,42826.0,0.1484074]
[1644210523216,0.00827729,42830.0,42826.0,0.1484074]
[1644210523418,0.00884064,42830.0,42826.0,0.1484074]
[1644210523716,0.00884064,42830.0,42826.0,0.06755928]
[1644210524319,0.00827729,42830.0,42826.0,0.06755928]
[1644210524518,0.00784064,42830.0,42826.0,0.06955928]
[1644210524719,0.00784064,42830.0,42827.0,0.5]
[1644210524919,0.00756335,42830.0,42827.0,0.67082623]
[1644210525118,0.00756335,42830.0,42827.0,0.72082623]
[1644210525565,0.007,42830.0,42827.0,0.72082623]
[1644210525766,0.0708846,42831.0,42827.0,0.72082623]
[1644210525965,0.07060731,42831.0,42827.0,0.72082623]
[1644210526365,0.0708846,42831.0,42827.0,0.72082623]
[1644210526566,0.07760731,42831.0,42827.0,0.73782623]
[1644210526766,0.07704396,42831.0,42827.0,0.73782623]
[1644210526968,0.07760731,42831.0,42827.0,0.73782623]
[1644210527766,0.07060731,42831.0,42827.0,0.72082623]
[1644210527970,0.07004396,42831.0,42827.0,0.72082623]
[1644210528166,0.07060731,42831.0,42827.0,0.72082623]
[1644210528567,0.07760731,42831.0,42827.0,0.73782623]
[1644210529218,0.07704396,42831.0,42827.0,0.73782623]
[1644210529416,0.07760731,42831.0,42827.0,0.73782623]
[1644210529718,0.07060731,42831.0,42827.0,0.72082623]
[1644210530315,0.07004396,42831.0,42827.0,0.72082623]
[1644210530518,0.07760731,42831.0,42827.0,0.73882623]
[1644210530716,0.07760731,42831.0,42828.0,0.0467]
[1644210531518,0.07704396,42831.0,42828.0,0.0467]
[1644210531719,0.07704396,42831.0,42830.0,0.05]
[1644210531919,0.07004396,42831.0,42830.0,0.05]
[1644210532619,0.07704396,42831.0,42830.0,0.065]
[1644210532873,0.07704396,42831.0,42830.0,0.35146061]
[1644210533075,0.07704396,42831.0,42830.0,0.89816061]
[1644210533270,0.07704396,42831.0,42830.0,0.99816061]
[1644210533870,0.07004396,42831.0,42830.0,0.98316061]
[1644210534071,0.07004396,42831.0,42830.0,1.30951261]
[1644210534271,0.00084064,42833.0,42830.0,1.30951261]
[1644210534472,0.00056335,42833.0,42832.0,0.05]
[1644210534671,0.00056335,42833.0,42832.0,1.20520326]
[1644210535170,0.00027729,42838.0,42832.0,1.20520326]
[1644210535371,0.01127729,42839.0,42837.0,0.06886127]
[1644210535574,0.00027729,42838.0,42837.0,0.06886127]
[1644210535772,0.011,42839.0,42837.0,0.11556127]
[1644210536718,0.031,42839.0,42837.0,0.12256127]
[1644210537721,0.011,42839.0,42838.0,0.27850265]
[1644210537924,0.011,42839.0,42838.0,0.65147765]
[1644210538521,0.011,42839.0,42838.0,0.66147765]
[1644210539022,0.011,42839.0,42838.0,1.16147765]
[1644210539223,0.011,42839.0,42838.0,0.882975]
[1644210539822,0.011,42839.0,42838.0,0.872975]
[1644210540463,0.0109188,42839.0,42838.0,0.872975]
[1644210540666,0.0109188,42839.0,42838.0,0.880975]
[1644210541065,0.0109188,42839.0,42838.0,0.875975]
[1644210541866,0.0109188,42839.0,42838.0,0.867975]
[1644210542568,0.0109188,42839.0,42838.0,0.87686043]
[1644210543768,0.0109188,42839.0,42838.0,0.86786043]
[1644210544618,0.0109188,42839.0,42838.0,0.87686043]
[1644210545820,0.0109188,42839.0,42838.0,0.86786043]
[1644210546616,0.0109188,42839.0,42838.0,0.87686043]
[1644210547867,0.0109188,42839.0,42838.0,0.86786043]
[1644210548568,0.0109188,42839.0,42838.0,0.87586043]
[1644210549769,0.0109188,42839.0,42838.0,0.86786043]
[1644210549969,0.0109188,42839.0,42838.0,0.66786043]
[1644210550570,0.0109188,42839.0,42838.0,0.67686043]
[1644210550772,0.0109188,42839.0,42838.0,0.72686043]
[1644210551628,0.0109188,42839.0,42838.0,0.67686043]
[1644210551820,0.0109188,42839.0,42838.0,0.66786043]
[1644210552620,0.0109188,42839.0,42838.0,0.17686043]
[1644210553020,0.0109188,42839.0,42838.0,0.67686043]
[1644210553921,0.0109188,42839.0,42838.0,0.66786043]
[1644210554520,0.0109188,42839.0,42838.0,0.67686043]
[1644210554921,0.0109188,42839.0,42838.0,0.72686043]
[1644210556173,0.0109188,42839.0,42838.0,0.67686043]
[1644210556573,0.0109188,42839.0,42838.0,0.68586043]
[1644210556772,0.0109188,42839.0,42838.0,0.67686043]
[1644210557172,0.0109188,42839.0,42838.0,0.77686043]
[1644210557372,0.0109188,42839.0,42838.0,0.82686043]
[1644210557773,0.0109188,42839.0,42838.0,0.81786043]
[1644210558576,0.0109188,42839.0,42838.0,0.82986043]
[1644210559919,0.0109188,42839.0,42838.0,0.81786043]
[1644210560723,0.0109188,42839.0,42838.0,0.82986043]
[1644210561122,0.0109188,42839.0,42838.0,0.82486043]
[1644210561924,0.0109188,42839.0,42838.0,0.81286043]
[1644210562725,0.0109188,42839.0,42838.0,0.82486043]
[1644210563769,0.0109188,42839.0,42838.0,0.81286043]
[1644210564570,0.0109188,42839.0,42838.0,0.82586043]
[1644210565770,0.0109188,42839.0,42838.0,0.81286043]
[1644210566621,0.0109188,42839.0,42838.0,0.82586043]
[1644210567916,0.0109188,42839.0,42838.0,0.81286043]
[1644210568118,0.001,42845.0,42840.0,0.4]
[1644210568322,0.042,42852.0,42845.0,0.7]
[1644210568518,0.042,42852.0,42847.0,0.05]
[1644210568718,0.042,42852.0,42848.0,0.0467]
[1644210568921,0.042,42852.0,42849.0,0.116129]
[1644210569121,0.042,42852.0,42850.0,0.0467]
[1644210569321,0.042,42852.0,42851.0,0.08867549]
[1644210569518,0.042,42852.0,42851.0,0.13537549]
[1644210569718,0.042,42852.0,42851.0,0.18537549]
[1644210570472,0.042,42852.0,42851.0,0.30149749]
[1644210570672,0.042,42852.0,42851.0,0.60638378]
[1644210570871,0.042,42852.0,42851.0,1.10638378]
[1644210571072,0.042,42852.0,42851.0,1.20638378]
[1644210571274,0.042,42852.0,42851.0,1.30638378]
[1644210571676,0.042,42852.0,42851.0,1.20638378]
[1644210571877,0.042,42852.0,42851.0,1.13938378]
[1644210572072,0.042,42852.0,42851.0,1.18938378]
[1644210572372,0.042,42852.0,42851.0,1.28938378]
[1644210572773,0.042,42852.0,42851.0,0.727822]
[1644210573774,0.042,42852.0,42851.0,0.6117]
[1644210574129,0.368494,42852.0,42851.0,0.5967]
[1644210574323,0.368494,42852.0,42851.0,0.0467]
[1644210574526,0.042,42852.0,42851.0,0.0467]
[1644210574723,0.052,42852.0,42851.0,0.0827]
[1644210575123,0.052,42852.0,42851.0,0.036]
[1644210575323,0.378494,42852.0,42851.0,0.036]
[1644210575524,0.378494,42852.0,42851.0,0.086]
[1644210575825,0.052,42852.0,42851.0,0.036]
[1644210576026,0.042,42852.0,42848.0,0.1]
[1644210576324,0.042,42852.0,42851.0,0.13199318]
[1644210576523,0.042,42852.0,42851.0,0.24811418]
[1644210576724,0.042,42852.0,42848.0,0.055]
[1644210576725,0.048,42852.0,42848.0,0.055]
[1644210577325,0.04855631,42852.0,42848.0,0.055]
[1644210577527,0.04883373,42852.0,42849.0,0.162827]
[1644210577726,0.04855631,42852.0,42849.0,0.212827]
[1644210577972,0.04855631,42852.0,42849.0,0.0967]
[1644210577973,0.04255631,42852.0,42849.0,0.0967]
[1644210578172,0.04255631,42852.0,42850.0,0.116125]
[1644210578375,0.042,42852.0,42851.0,0.0467]
[1644210578576,0.042,42852.0,42851.0,0.162821]
[1644210578775,0.053,42852.0,42851.0,0.22815663]
[1644210578975,0.053,42852.0,42851.0,0.5069222]
[1644210579978,0.042,42852.0,42851.0,0.5069222]
[1644210580379,0.042,42852.0,42851.0,1.0069222]
[1644210580778,0.05,42852.0,42851.0,1.0369222]
[1644210582123,0.05,42852.0,42851.0,1.1369222]
[1644210582327,0.05,42852.0,42851.0,0.85815663]
[1644210582623,0.006,42852.0,42851.0,1.1437269]
[1644210582824,0.006,42852.0,42851.0,1.2937269]
[1644210583024,0.006,42852.0,42851.0,1.35204284]
[1644210583424,0.006,42852.0,42851.0,1.2937269]
[1644210583926,0.00083373,42854.0,42851.0,1.2637269]
[1644210584225,0.00083373,42854.0,42852.0,0.666117]
[1644210584226,0.00055631,42854.0,42852.0,0.666117]
[1644210584424,0.00027742,42859.0,42853.0,0.162813]
[1644210584625,0.00055631,42855.0,42853.0,0.162813]
[1644210584824,0.00055631,42855.0,42854.0,0.07175043]
[1644210585029,0.00055631,42855.0,42854.0,0.23455943]
[1644210585223,0.00055631,42855.0,42854.0,0.73455943]
[1644210585673,0.00027742,42860.0,42855.0,0.116103]
[1644210585873,0.19943715,42876.0,42857.0,0.05]
[1644210585874,0.00027872,42861.0,42857.0,0.05]
[1644210586073,0.00027872,42861.0,42858.0,0.162791]
[1644210586273,0.04015872,42862.0,42859.0,0.0467]
[1644210586473,0.23144043,42862.0,42861.0,0.07922627]
[1644210586674,0.23144043,42862.0,42861.0,0.12592627]
[1644210587678,0.23144043,42862.0,42858.0,0.07768703]
[1644210587877,0.23171915,42862.0,42858.0,0.07768703]
[1644210588277,0.23227546,42862.0,42858.0,0.07768703]
[1644210588678,0.24327546,42862.0,42859.0,0.0467]
[1644210588880,0.24299674,42862.0,42859.0,0.0467]
[1644210589124,0.24244043,42862.0,42859.0,0.0467]
[1644210590119,0.23144043,42862.0,42859.0,0.0467]
[1644210590723,0.24244043,42862.0,42859.0,0.0557]
[1644210592119,0.23144043,42862.0,42859.0,0.0467]
[1644210592721,0.24244043,42862.0,42859.0,0.0557]
[1644210594070,0.23144043,42862.0,42859.0,0.0467]
[1644210594671,0.23744043,42862.0,42859.0,0.0587]
[1644210595073,0.23744043,42862.0,42859.0,0.012]
[1644210595475,0.326494,42861.0,42859.0,0.012]
[1644210596071,0.326494,42861.0,42849.0,0.07009551]
[1644210596372,0.08693833,42855.0,42849.0,0.12009551]
[1644210596630,0.00055631,42858.0,42849.0,0.12009551]
[1644210597222,0.00055631,42858.0,42849.0,0.17009551]
[1644210597726,0.00027872,42859.0,42847.0,0.00255928]
[1644210597727,0.20743,42857.0,42847.0,0.00255928]
[1644210597923,0.69352367,42856.0,42847.0,0.00255928]
[1644210598324,0.69380239,42856.0,42847.0,0.00255928]
[1644210598723,0.69780239,42856.0,42847.0,0.00255928]
[1644210598924,0.2488785,42853.0,42847.0,0.00255928]
[1644210599124,0.6064118,42852.0,42847.0,0.00255928]
[1644210599323,0.6064118,42852.0,42846.0,0.08929776]
[1644210599324,0.60736889,42852.0,42846.0,0.08865904]
[1644210599523,0.32677272,42852.0,42846.0,0.08865904]
[1644210599725,0.32677272,42852.0,42845.0,0.00070105]
[1644210599924,0.60671167,42852.0,42844.0,0.05]
[1644210600124,0.32677272,42852.0,42845.0,0.00070104]
[1644210600372,0.00055631,42851.0,42845.0,0.00070104]
[1644210600678,0.00083503,42851.0,42848.0,0.08303688]
[1644210600875,0.00055631,42851.0,42848.0,0.08242866]
[1644210601273,0.00427872,42852.0,42848.0,0.08242866]
[1644210601475,0.0044457,42852.0,42848.0,0.08242866]
[1644210601675,0.0044457,42852.0,42842.0,0.116152]
[1644210602074,0.0004457,42852.0,42843.0,0.11615]
[1644210602574,0.08633936,42850.0,42845.0,0.07681556]
[1644210603177,0.00027872,42851.0,42845.0,0.07681556]
[1644210603376,0.00327872,42852.0,42845.0,0.07681556]
[1644210603576,0.00027872,42851.0,42841.0,0.41090867]
[1644210603777,0.00016685,42851.0,42842.0,0.116152]
[1644210603978,0.00044557,42851.0,42842.0,0.116152]
[1644210604225,0.00016685,42851.0,42842.0,0.05]
[1644210604525,0.00044557,42851.0,42843.0,0.11615]
[1644210604723,0.00216685,42851.0,42848.0,0.06556152]
[1644210604928,0.002,42851.0,42848.0,0.06556152]
[1644210605124,0.00055589,42849.0,42848.0,0.06556152]
[1644210605930,0.00227872,42851.0,42848.0,0.06556152]
[1644210606126,0.326494,42851.0,42848.0,0.06556152]
[1644210606326,0.32704989,42851.0,42848.0,0.06556152]
[1644210606725,0.33304989,42851.0,42848.0,0.06556152]
[1644210606926,0.33304989,42851.0,42845.0,0.000701]
[1644210607126,0.00655589,42851.0,42840.0,0.2239]
[1644210607327,0.006,42851.0,42845.0,0.000701]
[1644210607528,0.00055589,42850.0,42845.0,0.000701]
[1644210607727,0.00083461,42850.0,42845.0,0.000701]
[1644210608169,0.00055589,42850.0,42845.0,0.000701]
[1644210608372,0.00027872,42852.0,42840.0,0.54569129]